[Event "Mitropa Cup Open 2024"]
[Site "Apolda"]
[Date "2024.02.20"]
[Round "6.15"]
[White "Tomulic, Teo"]
[Black "Lavrencic, Matic"]
[Result "1/2-1/2"]
[ECO "B85"]
[WhiteElo "2386"]
[BlackElo "2299"]
[Annotator "ChessBase"]
[PlyCount "240"]
[EventDate "2024.02.15"]
[EventType "team-tourn"]
[EventCountry "GER"]
[SourceTitle "playchess.com"]
[Source "ChessBase"]
[SourceQuality "1"]
[WhiteTeam "Croatia"]
[BlackTeam "Slovenia"]
[WhiteTeamCountry "CRO"]
[BlackTeamCountry "SLO"]
[TimeControl "40/5400+30:1800+30"]

1. e4 {[%emt 0:00:02]} c5 {[%emt 0:00:29]} 2. Nf3 {[%emt 0:00:04]} e6 {[%emt 0:00:15]} 3. d4 {[%emt 0:00:22]} cxd4 {[%emt 0:00:14]} 4. Nxd4 {[%emt 0:00:04]} Nf6 {[%emt 0:00:14]} 5. Nc3 {[%emt 0:00:04]} Nc6 {[%emt 0:00:19]} 6. Be2 {[%emt 0:00:11]} Qc7 {[%emt 0:02:01]} 7. O-O {[%emt 0:03:28]} Be7 {[%emt 0:01:03]} 8. Be3 {[%emt 0:00:50]} O-O {[%emt 0:01:52]} 9. f4 {[%emt 0:00:32]} d6 {[%emt 0:00:28]} 10. Bf3 {[%emt 0:14:16]} a6 {[%emt 0:10:21]} 11. Qe2 {[%emt 0:06:04]} Nxd4 {[%emt 0:02:15]} 12. Bxd4 {[%emt 0:00:03]} e5 {[%emt 0:00:21]} 13. Bf2 {[%emt 0:32:44]} exf4 {[%emt 0:13:52]} 14. Qd2 {[%emt 0:00:19]} Be6 {[%emt 0:07:59]} 15. Qxf4 {[%emt 0:01:01]} Nd7 {[%emt 0:01:12]} 16. Nd5 {[%emt 0:13:50]} Bxd5 {[%emt 0:01:48]} 17. exd5 {[%emt 0:00:02]} Bf6 {[%emt 0:05:08]} 18. c3 {[%emt 0:00:47]} Be5 {[%emt 0:05:00]} 19. Qd2 {[%emt 0:02:26]} g6 {[%emt 0:00:59]} 20. Rac1 {[%emt 0:01:02]} Bg7 {[%emt 0:22:16]} 21. c4 {[%emt 0:00:21]} a5 {[%emt 0:00:42]} 22. b3 {[%emt 0:00:33]} b6 {[%emt 0:01:15]} 23. Rfe1 {[%emt 0:00:21]} Ne5 {[%emt 0:00:31]} 24. Be2 {[%emt 0:01:30]} Rfe8 {[%emt 0:09:06]} 25. h3 {[%emt 0:00:06]} h5 {[%emt 0:01:18]} 26. Bf1 {[%emt 0:00:39]} Kh7 {[%emt 0:00:44]} 27. Be3 {[%emt 0:03:47]} Nd7 {[%emt 0:01:02]} 28. Bf4 {[%emt 0:01:30]} Be5 {[%emt 0:01:12]} 29. Be3 {[%emt 0:01:32]} Bg3 {[%emt 0:01:00]} 30. Re2 {[%emt 0:00:37]} Nc5 {[%emt 0:01:13]} 31. Bd4 {[%emt 0:00:07]} Qd7 {[%emt 0:01:01]} 32. Rxe8 {[%emt 0:02:26]} Rxe8 {[%emt 0:00:10]} 33. Bd3 {[%emt 0:00:26]} Be5 {[%emt 0:02:30]} 34. Be3 {[%emt 0:01:42]} Qe7 {[%emt 0:00:45]} 35. Bb1 {[%emt 0:12:41]} Bh2+ {[%emt 0:02:01]} 36. Kxh2 {[%emt 0:00:05]} Qxe3 {[%emt 0:00:04]} 37. Rd1 {[%emt 0:01:45]} Kg7 {[%emt 0:03:11]} 38. Bc2 {[%emt 0:00:33]} Qe5+ {[%emt 0:02:21]} 39. Kg1 {[%emt 0:00:06]} Qg3 {[%emt 0:00:34]} 40. Qf2 {[%emt 0:00:41]} Qe5 {[%emt 0:01:08]} 41. Rf1 {[%emt 0:02:08]} f5 {[%emt 0:03:03]} 42. a3 {[%emt 0:06:21]} Qe3 {[%emt 0:01:47]} 43. b4 {[%emt 0:00:47]} axb4 {[%emt 0:00:20]} 44. axb4 {[%emt 0:00:04]} Na6 {[%emt 0:00:24]} 45. Rb1 {[%emt 0:04:51]} f4 {[%emt 0:02:28]} 46. Qxe3 {[%emt 0:12:37]} Rxe3 {[%emt 0:03:36]} 47. Ba4 {[%emt 0:00:04]} Re4 {[%emt 0:00:33]} 48. Bb5 {[%emt 0:00:21]} Nc7 {[%emt 0:00:07]} 49. Bc6 {[%emt 0:00:59]} Rxc4 {[%emt 0:04:50]} 50. Ra1 {[%emt 0:00:01]} Kf6 {[%emt 0:01:10]} 51. Ra7 {[%emt 0:01:58]} Ne6 {[%emt 0:00:17]} 52. Rd7 {[%emt 0:01:27]} Ng5 {[%emt 0:02:25]} 53. Rxd6+ {[%emt 0:00:17]} Ke5 {[%emt 0:00:24]} 54. Rxg6 {[%emt 0:00:59]} Ne4 {[%emt 0:02:13]} 55. Kf1 {[%emt 0:02:12]} Rxb4 {[%emt 0:09:10]} 56. d6 {[%emt 0:01:04]} Nxd6 {[%emt 0:00:34]} 57. Rg5+ {[%emt 0:00:03]} Kf6 {[%emt 0:01:28]} 58. Rxh5 {[%emt 0:00:04]} Nf5 {[%emt 0:00:20]} 59. Rh8 {[%emt 0:00:58]} Rb2 {[%emt 0:01:42]} 60. Rd8 {[%emt 0:01:48]} Ne3+ {[%emt 0:01:33]} 61. Kg1 {[%emt 0:00:16]} b5 {[%emt 0:00:53]} 62. Rd4 {[%emt 0:01:10]} Ke5 {[%emt 0:00:30]} 63. Re4+ {[%emt 0:00:37]} Kd6 {[%emt 0:01:00]} 64. Bxb5 {[%emt 0:00:04]} Rxb5 {[%emt 0:00:11]} 65. Rxf4 {[%emt 0:00:10]} Ke5 {[%emt 0:00:11]} 66. Ra4 {[%emt 0:01:13]} Rb2 {[%emt 0:00:39]} 67. g4 {[%emt 0:00:04]} Nd5 {[%emt 0:00:42]} 68. Kf1 {[%emt 0:00:45]} Nc3 {[%emt 0:01:06]} 69. Rc4 {[%emt 0:00:45]} Ne4 {[%emt 0:00:12]} 70. Ke1 {[%emt 0:00:16]} Kd5 {[%emt 0:00:21]} 71. Rc8 {[%emt 0:00:17]} Kd4 {[%emt 0:00:24]} 72. Rd8+ {[%emt 0:00:44]} Ke3 {[%emt 0:00:13]} 73. Kd1 {[%emt 0:00:12]} Rh2 {[%emt 0:00:21]} 74. Kc1 {[%emt 0:00:16]} Rxh3 {[%emt 0:00:18]} 75. Kc2 {[%emt 0:00:07]} Rh2+ {[%emt 0:00:05]} 76. Kb3 {[%emt 0:00:04]} Rh7 {[%emt 0:00:22]} 77. g5 {[%emt 0:00:47]} Nxg5 {[%emt 0:00:20]} 78. Kc4 {[%emt 0:00:26]} Nf3 {[%emt 0:00:30]} 79. Re8+ {[%emt 0:00:14]} Kf4 {[%emt 0:00:08]} 80. Rf8+ {[%emt 0:01:00]} Ke4 {[%emt 0:00:08]} 81. Re8+ {[%emt 0:00:13]} Ne5+ {[%emt 0:00:05]} 82. Kc3 {[%emt 0:00:21]} Rc7+ {[%emt 0:00:13]} 83. Kd2 {[%emt 0:00:06]} Rc6 {[%emt 0:01:13]} 84. Re7 {[%emt 0:00:34]} Kd4 {[%emt 0:00:11]} 85. Re8 {[%emt 0:00:25]} Rd6 {[%emt 0:00:55]} 86. Ke2 {[%emt 0:00:26]} Nd3 {[%emt 0:01:04]} 87. Rf8 {[%emt 0:00:46]} Rd7 {[%emt 0:00:36]} 88. Kf3 {[%emt 0:00:52]} Re7 {[%emt 0:00:57]} 89. Rd8+ {[%emt 0:00:07]} Kc3 {[%emt 0:00:03]} 90. Rc8+ {[%emt 0:00:21]} Kd2 {[%emt 0:00:03]} 91. Rd8 {[%emt 0:00:04]} Re3+ {[%emt 0:00:11]} 92. Kg4 {[%emt 0:00:04]} Re5 {[%emt 0:00:04]} 93. Kf3 {[%emt 0:00:31]} Re7 {[%emt 0:01:22]} 94. Ra8 {[%emt 0:00:35]} Rf7+ {[%emt 0:01:00]} 95. Ke4 {[%emt 0:00:06]} Rf4+ {[%emt 0:00:06]} 96. Kd5 {[%emt 0:00:04]} Rh4 {[%emt 0:00:47]} 97. Rd8 {[%emt 0:00:28]} Nb4+ {[%emt 0:00:21]} 98. Ke5+ {[%emt 0:00:13]} Ke3 {[%emt 0:00:03]} 99. Ra8 {[%emt 0:00:44]} Rh5+ {[%emt 0:00:41]} 100. Kf6 {[%emt 0:00:19]} Nd5+ {[%emt 0:00:07]} 101. Kg6 {[%emt 0:00:07]} Rh1 {[%emt 0:00:18]} 102. Kf5 {[%emt 0:00:46]} Rh5+ {[%emt 0:00:28]} 103. Kg6 {[%emt 0:00:05]} Re5 {[%emt 0:00:09]} 104. Ra3+ {[%emt 0:00:07]} Ke4 {[%emt 0:00:10]} 105. Ra4+ {[%emt 0:00:05]} Kf3 {[%emt 0:00:07]} 106. Ra1 {[%emt 0:00:38]} Nf4+ {[%emt 0:01:02]} 107. Kf6 {[%emt 0:00:08]} Rb5 {[%emt 0:00:05]} 108. Rf1+ {[%emt 0:00:09]} Ke4 {[%emt 0:00:04]} 109. Re1+ {[%emt 0:00:05]} Kd4 {[%emt 0:00:06]} 110. Rd1+ {[%emt 0:00:13]} Nd3 {[%emt 0:00:05]} 111. Rh1 {[%emt 0:00:20]} Rb6+ {[%emt 0:00:13]} 112. Kf5 {[%emt 0:00:10]} Ra6 {[%emt 0:00:09]} 113. Rh4+ {[%emt 0:00:15]} Kd5 {[%emt 0:00:05]} 114. Rh8 {[%emt 0:00:14]} Rd6 {[%emt 0:00:10]} 115. Ra8 {[%emt 0:00:25]} Rd7 {[%emt 0:00:03]} 116. Kf6 {[%emt 0:00:16]} Nc5 {[%emt 0:00:25]} 117. Ra5 {[%emt 0:01:38]} Rb7 {[%emt 0:00:47]} 118. Ra1 {[%emt 0:00:20]} Ne4+ {[%emt 0:00:08]} 119. Kf5 {[%emt 0:00:13]} Rf7+ {[%emt 0:00:05]} 120. Kg4 {[%emt 0:00:24]} Ke5 {[%emt 0:00:42]} 1/2-1/2

[Event "Mitropa Cup Open 2024"]
[Site "Apolda"]
[Date "2024.02.20"]
[Round "6.16"]
[White "Olenik Campa, Rudi"]
[Black "Novosel, Lovro"]
[Result "1-0"]
[ECO "B51"]
[WhiteElo "2299"]
[BlackElo "2373"]
[Annotator "TA"]
[PlyCount "115"]
[EventDate "2024.02.15"]
[EventType "team-tourn"]
[EventCountry "GER"]
[SourceTitle "playchess.com"]
[Source "ChessBase"]
[SourceQuality "1"]
[WhiteTeam "Slovenia"]
[BlackTeam "Croatia"]
[WhiteTeamCountry "SLO"]
[BlackTeamCountry "CRO"]
[TimeControl "40/5400+30:1800+30"]

{[%evp 18,115,39,17,20,18,22,8,14,15,6,-8,7,0,32,28,93,62,141,126,147,125,207,210,222,148,141,125,131,140,170,134,216,212,210,149,236,248,253,262,324,300,308,161,162,175,164,157,170,160,157,117,171,117,111,82,209,195,197,156,145,110,147,132,157,154,169,183,159,91,81,65,160,145,208,141,164,125,117,125,135,106,111,132,122,131,183,199,204,202,568,134,726,718,685,682,29979,29980,29985,29986]} 1. e4 {[%emt 0:00:56]} c5 {[%emt 0:00:24]} 2. Nf3 {[%emt 0:00:05]} d6 {[%emt 0:00:14]} 3. Bb5+ {[%emt 0:00:06]} Nd7 {[%emt 0:00:06]} 4. a4 {[%emt 0:00:09]} Ngf6 {[%emt 0:00:11]} 5. Nc3 {[%emt 0:00:07]} g6 {[%emt 0:01:46]} 6. a5 {[%emt 0:00:09] B51: Sizilianisch (Rossolimo-Variante).} a6 {[%emt 0:01:55]} 7. Be2 {[%emt 0:00:17]} Bg7 {[%emt 0:00:20]} 8. O-O {[%emt 0:00:11]} O-O {[%emt 0:00:06]} 9. d3 {[%emt 0:00:04]} Ng4 {[%emt 0:12:19]} 10. Nd2 {[%emt 0:09:08]} Nge5 {[%emt 0:00:37]} 11. f4 {[%emt 0:00:52]} Nc6 {[%emt 0:00:25]} 12. Nc4 {[%emt 0:01:21]} b5 {[%emt 0:05:59]} 13. axb6 {[%emt 0:00:08]} Nxb6 {[%emt 0:00:09]} 14. Ne3 $146 {[%emt 0:06:39]} ({Predecessor:} 14. Nxb6 Qxb6 15. Nd5 Qb7 16. c3 e6 17. Ne3 Ne7 18. Qe1 Rb8 19. Qh4 f5 20. Nc4 {½-½ Obada,E (1964)-Matasaru,S (1909) ROM-chT (Women) 2021 (5.2)}) 14... Nd4 {[%emt 0:06:53]} 15. Qe1 {[%emt 0:22:25]} Bb7 {[%emt 0:19:23]} 16. Bd1 {[%emt 0:05:14]} Qc7 {[%emt 0:01:30]} (16... e6 $11) 17. f5 $16 {[%emt 0:02:26]} Nd7 {[%emt 0:17:08]} (17... Kh8 $1 $14) 18. Qh4 {[%emt 0:09:15]} Qd8 {[%emt 0:06:28]} 19. Ng4 {[%emt 0:01:12]} Nf6 {[%emt 0:07:48]} (19... Ne5 $16) 20. Nh6+ $18 {[%emt 0:02:46]} Bxh6 {[%emt 0:01:56]} 21. Qxh6 {[%emt 0:05:48]} Kh8 {[%emt 0:02:43]} 22. Ne2 {[%emt 0:04:01]} Nxe2+ {[%emt 0:06:34]} 23. Bxe2 {[%emt 0:00:03]} Bc8 {[%emt 0:00:15]} 24. Bg5 {[%emt 0:02:41]} Ng8 {[%emt 0:01:28]} (24... Rg8 $16 25. fxg6 Rxg6) 25. Qh4 $18 {[%emt 0:00:42]} gxf5 {[%emt 0:01:08]} 26. Bh5 {[%emt 0:02:34]} Ra7 {[%emt 0:01:33]} (26... Qb6 $16 {war angesagt.}) 27. exf5 $18 {[%emt 0:04:55]} f6 {[%emt 0:01:13]} 28. Bd2 {[%emt 0:00:19]} d5 {[%emt 0:02:19]} 29. Rae1 {[%emt 0:00:23]} Qb6 {[%emt 0:00:52]} 30. Re3 {[%emt 0:00:57]} (30. Rf2 $142) 30... e5 $18 {[%emt 0:00:26]} 31. fxe6 {[%emt 0:00:27]} Bxe6 {[%emt 0:00:01]} 32. b3 {[%emt 0:03:13]} Rg7 {[%emt 0:00:34]} 33. Kh1 {[%emt 0:01:29]} Bf7 {[%emt 0:01:08]} 34. Bxf7 {[%emt 0:00:28]} Rgxf7 {[%emt 0:00:18]} (34... Rfxf7 $16 35. Rf5 c4) 35. Ref3 {[%emt 0:01:03]} (35. Rfe1 $18) 35... Qc6 $16 {[%emt 0:00:48]} 36. Qh5 {[%emt 0:00:40]} c4 {[%emt 0:00:13]} (36... Rg7 $16 {ist eine bessere Verteidigung.}) 37. dxc4 $18 {[%emt 0:00:35]} dxc4 {[%emt 0:00:01]} 38. b4 {[%emt 0:00:56]} Rg7 {[%emt 0:00:38]} 39. Qh3 {[%emt 0:01:32]} Rg6 {[%emt 0:00:36]} 40. Bc3 {[%emt 0:02:06]} Ne7 {[%emt 0:00:19]} 41. Bd4 {[%emt 0:34:37]} Nd5 {[%emt 0:02:40]} 42. c3 {[%emt 0:00:00]} Kg8 {[%emt 0:01:52]} 43. Qh4 {[%emt 0:00:00]} ({Besser ist} 43. Rf5) 43... Re8 $16 {[%emt 0:07:59]} 44. Bc5 {[%emt 0:00:00]} (44. Bxf6 $2 Nxf6 45. Qf2 Qd6 $19) 44... Re6 {[%emt 0:03:01]} (44... Ne3 $14 45. Bxe3 Rxe3) 45. Rh3 $16 {[%emt 0:00:00]} (45. Qxc4 Rxg2 (45... Ne3 46. Qxe6+ Qxe6 47. Bxe3 $14) 46. Qd3 (46. Kxg2 $2 Ne3+ 47. Bxe3 Qxc4 $17) 46... Rg5 $11) 45... Rg7 {[%emt 0:00:49]} (45... h6 $16) 46. Rg3 {[%emt 0:00:00]} (46. Qxc4 Rxg2 (46... Ne3 47. Qxe6+ Qxe6 48. Rxe3 $15) 47. Qd3 Rg6 $11) 46... Rg6 {[%emt 0:01:18]} 47. Rd1 {[%emt 0:00:00]} (47. Qxc4 Rxg3 48. hxg3 Ne3 $11) 47... Kg7 {[%emt 0:02:14]} 48. Rg1 {[%emt 0:00:00]} ({Schlechter ist} 48. Qxc4 Rxg3 49. hxg3 Ne3 $17) 48... Qb5 {[%emt 0:03:04]} 49. Rh3 {[%emt 0:00:00]} h6 {[%emt 0:01:23]} 50. Qd4 {[%emt 0:00:00]} Re5 {[%emt 0:03:45]} 51. Rf3 {[%emt 0:00:00]} h5 {[%emt 0:04:17]} (51... a5 $16) 52. h3 $18 {[%emt 0:00:00]} Rgg5 {[%emt 0:02:29]} 53. Rgf1 {[%emt 0:00:00]} Kg6 $2 {[%emt 0:01:10]} (53... Qe8 54. Qxc4 Qb5) 54. Ra1 $2 {[%emt 0:06:01]} (54. h4 $18 {und der Rest ist Schweigen.} Rg4 55. Rxf6+ Nxf6 56. Qxe5) 54... Ref5 $2 {[%emt 0:00:48][%mdl 8192]} (54... Re2 $16) 55. Qe4 $18 {[%emt 0:00:37]} Qd7 {[%emt 0:01:01]} 56. Raf1 {[%emt 0:00:07]} (56. Qxc4 $2 {ist das falsche Schlagen.} Rxf3 57. Qe4+ Rff5 $19) 56... h4 {[%emt 0:01:24]} 57. Rxf5 {[%emt 0:01:07]} Rxf5 {[%emt 0:00:04]} 58. Qg4+ {[%emt 0:00:04]} ({Nicht} 58. Qxc4 Rxf1+ 59. Qxf1 Nxc3 $16) 1-0

[Event "Mitropa Cup Open 2024"]
[Site "Apolda"]
[Date "2024.02.20"]
[Round "6.17"]
[White "Girel, Joseph"]
[Black "Bluebaum, Matthias"]
[Result "0-1"]
[ECO "B12"]
[WhiteElo "2492"]
[BlackElo "2655"]
[Annotator "TA"]
[PlyCount "72"]
[EventDate "2024.02.15"]
[EventType "team-tourn"]
[EventCountry "GER"]
[SourceTitle "playchess.com"]
[Source "ChessBase"]
[SourceQuality "1"]
[WhiteTeam "France"]
[BlackTeam "Germany"]
[WhiteTeamCountry "FRA"]
[BlackTeamCountry "GER"]
[TimeControl "40/5400+30:1800+30"]

{[%evp 12,72,0,0,8,-14,-11,-36,-52,-58,-59,-56,-26,-46,-34,-55,-47,-40,-39,-37,-38,-56,-55,-77,-68,-74,-80,-70,-76,-70,-71,-79,-89,-83,-76,-73,-66,-81,-79,-89,-87,-106,-98,-141,-92,-137,-109,-290,-295,-358,-332,-446,-445,-489,-500,-524,-531,-572,-536,-569,-576,-770,-629]} 1. e4 {[%emt 0:00:05]} c6 {[%emt 0:00:09]} 2. d4 {[%emt 0:00:21]} d5 {[%emt 0:00:04]} 3. e5 {[%emt 0:00:45]} Bf5 {[%emt 0:00:19]} 4. Nc3 {[%emt 0:01:35]} e6 {[%emt 0:00:41]} 5. g4 {[%emt 0:00:25]} Bg6 {[%emt 0:00:05]} 6. Nge2 {[%emt 0:00:23]} Ne7 {[%emt 0:03:43][%cal Bg8e7,Be7g6,Bg6h4,Bh4f5][%mdl 32]} 7. Nf4 {[%emt 0:01:24]} h6 {[%emt 0:01:22]} 8. Nxg6 {[%emt 0:11:00]} Nxg6 {[%emt 0:00:16]} 9. Be3 {[%emt 0:08:15] [#]} c5 $1 {[%emt 0:04:55] Black is slightly better.} 10. f4 {[%emt 0:14:27]} (10. dxc5 Nd7) 10... Nc6 {[%emt 0:05:55] ...cxd4 would now be deadly.} 11. Bb5 $1 {[%emt 0:02:21] [#]} h5 $1 {[%emt 0:10:48]} 12. g5 {[%emt 0:11:09]} Nh4 {[%emt 0:03:21] White must now prevent ...cxd4.} 13. Qe2 {[%emt 0:01:32]} cxd4 {[%emt 0:02:28]} 14. Bxd4 {[%emt 0:00:36]} a6 {[%emt 0:00:52]} 15. Bxc6+ {[%emt 0:02:39]} bxc6 {[%emt 0:00:04]} 16. Qf2 {[%emt 0:01:36]} Nf5 {[%emt 0:01:12]} 17. Bc5 {[%emt 0:12:35]} Rb8 {[%emt 0:06:29]} 18. Bxf8 {[%emt 0:03:41]} Kxf8 {[%emt 0:00:23]} 19. Qc5+ {[%emt 0:02:24]} Qe7 {[%emt 0:05:41]} 20. Qxe7+ {[%emt 0:02:41]} Kxe7 {[%emt 0:00:15]} 21. b3 {[%emt 0:01:11]} Rb4 {[%emt 0:05:24]} 22. Ne2 {[%emt 0:00:15]} c5 {[%emt 0:02:52] Black has more active pieces. The white rooks are passive.} 23. Kd2 {[%emt 0:00:44]} h4 {[%emt 0:02:56]} 24. Rhf1 {[%emt 0:01:59]} a5 {[%emt 0:02:34]} 25. Rf3 {[%emt 0:04:07]} Rc8 {[%emt 0:01:34]} 26. Rc1 {[%emt 0:02:52]} a4 {[%emt 0:04:30]} 27. c4 {[%emt 0:04:04]} axb3 {[%emt 0:06:41]} (27... d4 $142 {...Ne3 is the strong threat.} 28. Re1 Ra8) 28. axb3 {[%emt 0:01:22]} Rd8 {[%emt 0:00:06]} 29. Ke1 $2 {[%emt 0:04:48] [#] Loses the game.} (29. cxd5 $17 Rxd5+ 30. Ke1) 29... d4 $1 $19 {[%emt 0:01:34] And now ...d3 would win.} 30. Rd3 {[%emt 0:01:45]} Rdb8 {[%emt 0:00:26]} 31. Ra1 {[%emt 0:00:19]} Rxb3 {[%emt 0:00:21] Black is clearly winning.} 32. Rxb3 {[%emt 0:00:15]} Rxb3 {[%emt 0:00:02]} 33. Ra7+ {[%emt 0:00:16]} Ke8 {[%emt 0:00:17]} 34. Ra8+ {[%emt 0:01:00]} Kd7 {[%emt 0:00:06]} 35. Ra7+ {[%emt 0:00:05]} Kc6 {[%emt 0:00:44]} 36. Rxf7 {[%emt 0:00:06]} Rb4 {[%emt 0:01:10] Weighted Error Value: White=0.32/Black=0.06 (flawless) .  Loses game:     	White=1     	---        Mistake:       	---       	Black=1      Inaccurate:     	White=4     	Black=1      OK:         	White=6     	Black=11     Best:        	---       	Black=2      Strong:       	White=1     	Black=1} 0-1

[Event "Mitropa Cup Open 2024"]
[Site "Apolda"]
[Date "2024.02.20"]
[Round "6.18"]
[White "Svane, Rasmus"]
[Black "Makkar, Rajat"]
[Result "1-0"]
[ECO "D45"]
[WhiteElo "2637"]
[BlackElo "2453"]
[Annotator "RC"]
[PlyCount "159"]
[EventDate "2024.02.15"]
[EventType "team-tourn"]
[EventCountry "GER"]
[SourceTitle "playchess.com"]
[Source "ChessBase"]
[SourceQuality "1"]
[WhiteTeam "Germany"]
[BlackTeam "France"]
[WhiteTeamCountry "GER"]
[BlackTeamCountry "FRA"]
[TimeControl "40/5400+30:1800+30"]

1. d4 {[%emt 0:00:04]} d5 {[%emt 0:00:09]} 2. c4 {[%emt 0:00:05]} c6 {[%emt 0:00:09]} 3. Nc3 {[%emt 0:00:06]} Nf6 {[%emt 0:00:07]} 4. e3 {[%emt 0:00:07]} e6 {[%emt 0:00:17]} 5. Nf3 {[%emt 0:00:06]} Nbd7 {[%emt 0:00:27]} 6. Qc2 {[%emt 0:00:11]} Bd6 {[%emt 0:00:07]} 7. b3 {[%emt 0:00:07]} O-O {[%emt 0:01:58]} 8. Be2 {[%emt 0:00:09]} b6 {[%emt 0:00:19]} 9. O-O {[%emt 0:00:11]} Bb7 {[%emt 0:00:04]} 10. Bb2 {[%emt 0:00:08]} Qe7 {[%emt 0:00:08]} 11. a4 {[%emt 0:00:09]} Bb4 {[%emt 0:07:55]} 12. Na2 {[%emt 0:00:10]} Bd6 {[%emt 0:00:47]} 13. a5 {[%emt 0:00:57]} bxa5 {[%emt 0:08:30]} 14. c5 {[%emt 0:00:45]} Bc7 {[%emt 0:00:52]} 15. Nc1 {[%emt 0:06:14]} Ne4 {[%emt 0:02:57]} 16. Bd3 {[%emt 0:00:23]} f5 {[%emt 0:01:28]} 17. Ne2 {[%emt 0:22:27]} Rf6 {[%emt 0:04:38]} 18. g3 {[%emt 0:20:30]} Rh6 {[%emt 0:11:05]} 19. Ne1 {[%emt 0:08:26]} Qf7 {[%emt 0:14:17]} 20. f3 {[%emt 0:08:15]} Ng5 {[%emt 0:00:45]} 21. h4 {[%emt 0:07:35]} Qh5 {[%emt 0:08:29]} 22. Nf4 {[%emt 0:05:01]} Bxf4 {[%emt 0:02:31]} 23. exf4 {[%emt 0:00:04]} Nh3+ {[%emt 0:00:10]} 24. Kg2 {[%emt 0:00:37]} Nxf4+ {[%emt 0:00:29]} 25. gxf4 {[%emt 0:00:04]} Qxh4 {[%emt 0:00:10]} 26. Rg1 {[%emt 0:00:37]} Qxf4 {[%emt 0:02:46]} 27. Kf1 {[%emt 0:01:53]} Rh2 {[%emt 0:01:42]} 28. Qc1 {[%emt 0:04:16]} Qh4 {[%emt 0:02:38]} 29. Rg2 {[%emt 0:04:07]} Rh1+ {[%emt 0:01:33]} 30. Ke2 {[%emt 0:00:07]} f4 {[%emt 0:04:05]} 31. Qc3 {[%emt 0:04:23]} Qh3 {[%emt 0:03:44]} 32. Rf2 {[%emt 0:00:31]} Qg3 {[%emt 0:00:45]} 33. Qd2 {[%emt 0:02:22]} e5 {[%emt 0:02:13]} 34. Kd1 {[%emt 0:00:48]} e4 {[%emt 0:03:08]} 35. fxe4 {[%emt 0:00:23]} Nf6 {[%emt 0:00:02]} 36. Kc2 {[%emt 0:02:12]} Ng4 {[%emt 0:01:05]} 37. Rf3 {[%emt 0:00:57]} Qh2 {[%emt 0:01:21]} 38. e5 {[%emt 0:02:54]} Ne3+ {[%emt 0:01:28]} 39. Kc3 {[%emt 0:00:26]} g5 {[%emt 0:01:29]} 40. Qxh2 {[%emt 0:01:05]} Rxh2 {[%emt 0:00:04]} 41. Nc2 {[%emt 0:01:46]} Ng4 {[%emt 0:07:01]} 42. Re1 {[%emt 0:07:04]} Re8 {[%emt 0:01:53]} 43. Bc1 {[%emt 0:05:11]} Bc8 {[%emt 0:01:15]} 44. b4 {[%emt 0:02:36]} Nf2 {[%emt 0:02:57]} 45. Rg1 {[%emt 0:07:10]} Nh3 {[%emt 0:01:26]} 46. Rxh3 {[%emt 0:00:19]} Rxh3 {[%emt 0:00:12]} 47. Rxg5+ {[%emt 0:00:37]} Kh8 {[%emt 0:01:29]} 48. Bxf4 {[%emt 0:02:29]} Rf8 {[%emt 0:00:51]} 49. Be3 {[%emt 0:00:58]} axb4+ {[%emt 0:01:38]} 50. Kxb4 {[%emt 0:00:10]} Rff3 {[%emt 0:00:39]} 51. Rg1 {[%emt 0:02:24]} Rxe3 {[%emt 0:00:35]} 52. Nxe3 {[%emt 0:00:03]} Rxe3 {[%emt 0:00:03]} 53. Bc2 {[%emt 0:00:09]} Bd7 {[%emt 0:03:03]} 54. Ra1 {[%emt 0:01:00]} Re2 {[%emt 0:03:28]} 55. Kc3 {[%emt 0:02:02]} h5 {[%emt 0:00:24]} 56. Rxa7 {[%emt 0:00:09]} Bg4 {[%emt 0:00:06]} 57. Rc7 {[%emt 0:01:07]} Re3+ {[%emt 0:00:08]} 58. Kd2 {[%emt 0:00:13]} Re2+ {[%emt 0:00:12]} 59. Kc3 {[%emt 0:00:05]} Re3+ {[%emt 0:00:12]} 60. Kb4 {[%emt 0:00:22]} Re2 {[%emt 0:00:21]} 61. Ba4 {[%emt 0:02:08]} Re4 {[%emt 0:00:14]} 62. Kc3 {[%emt 0:00:39]} Re3+ {[%emt 0:00:06]} 63. Kd2 {[%emt 0:00:14]} Re4 {[%emt 0:00:18]} 64. Kd3 {[%emt 0:00:29]} Bf5 {[%emt 0:00:16]} 65. Kc3 {[%emt 0:01:56]} Re3+ {[%emt 0:00:28]} 66. Kb4 {[%emt 0:00:04]} Re4 {[%emt 0:00:11]} 67. Kc3 {[%emt 0:00:14]} Re3+ {[%emt 0:00:05]} 68. Kb4 {[%emt 0:00:03]} Re4 {[%emt 0:00:12]} 69. Bxc6 {[%emt 0:00:06]} Rxd4+ {[%emt 0:00:04]} 70. Ka5 {[%emt 0:00:05]} h4 {[%emt 0:04:33]} 71. Bd7 {[%emt 0:01:05]} Bxd7 {[%emt 0:05:38]} 72. Rxd7 {[%emt 0:00:01]} h3 {[%emt 0:01:12]} 73. Rf7 {[%emt 0:00:12]} h2 {[%emt 0:00:29]} 74. Rf1 {[%emt 0:00:04]} Rh4 {[%emt 0:01:07]} 75. Rh1 {[%emt 0:00:21]} Kg7 {[%emt 0:01:49]} 76. c6 {[%emt 0:00:36]} Kf7 {[%emt 0:02:12]} 77. c7 {[%emt 0:00:25]} Rc4 {[%emt 0:00:04]} 78. Rxh2 {[%emt 0:01:05]} Ke6 {[%emt 0:00:20]} 79. Rh6+ {[%emt 0:01:44]} Kd7 {[%emt 0:02:17]} 80. Kb6 {[%emt 0:01:14]} 1-0